fUSD/lending_fUSD_20260621
["ID","MTS","AMOUNT","RATE_DAILY","PERIOD"]
[425950032,1782042664000,-546.86,0.00027945,2]
[425950034,1782042664000,-577.43,0.00027945,2]
[425950036,1782042664000,-500.0,0.00027945,2]
[425950037,1782042664000,-500.0,0.00027945,2]
[425950040,1782042664000,-500.0,0.00027945,2]
[425950039,1782042664000,-500.0,0.00027945,2]
[425950038,1782042664000,-500.0,0.00027945,2]
[425950041,1782042664000,-1259.13,0.00027945,2]
[425950042,1782042664000,-500.0,0.00027945,2]
[425950043,1782042664000,-500.0,0.00027945,2]
[425950045,1782042664000,-500.0,0.00027945,2]
[425950046,1782042664000,-500.0,0.00027945,2]
[425950044,1782042664000,-500.0,0.00027945,2]
[425950047,1782042664000,-500.0,0.00027945,2]
[425950049,1782042664000,-716.64,0.00027945,2]
[425950075,1782042664000,-500.0,0.00027945,2]
[425950080,1782042664000,-291.77283641,0.00027945,2]
[425950122,1782042664000,-500.0,0.00027945,2]
[425950107,1782042664000,-500.0,0.00027945,2]
[425950110,1782042664000,-500.0,0.00027945,2]
[425950109,1782042664000,-500.0,0.00027945,2]
[425950114,1782042664000,-807.2,0.00027945,2]
[425950112,1782042664000,-500.0,0.00027945,2]
[425950115,1782042664000,-500.0,0.00027945,2]
[425950111,1782042664000,-500.0,0.00027945,2]
[425950123,1782042664000,-883.2,0.00027945,2]
[425950117,1782042664000,-500.0,0.00027945,2]
[425950118,1782042664000,-921.72,0.00027945,2]
[425950119,1782042664000,-552.46039231,0.00027945,2]
[425950124,1782042664000,-604.37957239,0.00027945,2]
[425950120,1782042664000,-500.0,0.00027945,2]
[425950121,1782042664000,-500.0,0.00027945,2]
[425950126,1782042664000,-500.0,0.00027945,2]
[425950125,1782042664000,-567.87,0.00027945,2]
[425950127,1782042664000,-500.0,0.00027945,2]
[425950128,1782042664000,-500.0,0.00027945,2]
[425950130,1782042664000,-772.47,0.00027945,2]
[425950131,1782042664000,-500.0,0.00027945,2]
[425950129,1782042664000,-500.0,0.00027945,2]
[425950133,1782042664000,-500.0,0.00027945,2]
[425950134,1782042664000,-500.0,0.00027945,2]
[425950077,1782042664000,-500.0,0.00027945,2]
[425950132,1782042664000,-500.0,0.00027945,2]
[425950108,1782042664000,-500.0,0.00027945,2]
[425950116,1782042664000,-500.0,0.00027945,2]
[425950113,1782042664000,-762.03,0.00027945,2]
[425950105,1782042664000,-500.0,0.00027945,2]
[425950081,1782042664000,-151.0,0.00027945,7]
[425950079,1782042664000,-500.0,0.00027945,2]
[425950088,1782042664000,-500.0,0.00027945,2]
[425950090,1782042664000,-500.0,0.00027945,2]
[425950091,1782042664000,-500.0,0.00027945,2]
[425950082,1782042664000,-500.0,0.00027945,2]
[425950087,1782042664000,-500.0,0.00027945,2]
[425950089,1782042664000,-998.03,0.00027945,2]
[425950106,1782042664000,-500.0,0.00027945,2]
[425950086,1782042664000,-500.0,0.00027945,2]
[425950092,1782042664000,-500.0,0.00027945,2]
[425950085,1782042664000,-500.0,0.00027945,2]
[425950084,1782042664000,-500.0,0.00027945,2]
[425950083,1782042664000,-500.0,0.00027945,2]
[425950101,1782042664000,-500.0,0.00027945,2]
[425950096,1782042664000,-619.13888945,0.00027945,2]
[425950093,1782042664000,-500.0,0.00027945,2]
[425950103,1782042664000,-500.0,0.00027945,2]
[425950100,1782042664000,-552.58912641,0.00027945,2]
[425950104,1782042664000,-644.07,0.00027945,2]
[425950097,1782042664000,-823.97,0.00027945,2]
[425950094,1782042664000,-500.0,0.00027945,2]
[425950102,1782042664000,-500.0,0.00027945,2]
[425950095,1782042664000,-500.0,0.00027945,2]
[425950099,1782042664000,-500.0,0.00027945,2]
[425950098,1782042664000,-1664.89,0.00027945,2]
[425950170,1782042665000,-500.0,0.00027945,2]
[425950169,1782042665000,-600.56388892,0.00027945,2]
[425950167,1782042665000,-500.0,0.00027945,2]
[425950173,1782042665000,-500.0,0.00027945,2]
[425950168,1782042665000,-500.0,0.00027945,2]
[425950174,1782042665000,-500.0,0.00027945,2]
[425950164,1782042665000,-500.0,0.00027945,2]
[425950175,1782042665000,-717.28,0.00027945,2]
[425950163,1782042665000,-1240.33,0.00027945,2]
[425950172,1782042665000,-500.0,0.00027945,2]
[425950171,1782042665000,-500.0,0.00027945,2]
[425950176,1782042665000,-512.19,0.00027945,2]
[425950192,1782042665000,-500.0,0.00027945,2]
[425950177,1782042665000,-500.0,0.00027945,2]
[425950188,1782042665000,-1485.29,0.00027945,2]
[425950182,1782042665000,-1014.39,0.00027945,2]
[425950181,1782042665000,-500.0,0.00027945,2]
[425950184,1782042665000,-1372.89,0.00027945,2]
[425950179,1782042665000,-500.0,0.00027945,2]
[425950180,1782042665000,-500.0,0.00027945,2]
[425950185,1782042665000,-500.0,0.00027945,2]
[425950186,1782042665000,-32804.885579,0.00027945,2]
[425950183,1782042665000,-500.0,0.00027945,2]
[425950193,1782042665000,-529.79,0.00027945,2]
[425950165,1782042665000,-500.0,0.00027945,2]
[425950187,1782042665000,-996.79,0.00027945,2]
[425950166,1782042665000,-500.0,0.00027945,2]
[425950137,1782042665000,-500.0,0.00027945,2]
[425950157,1782042665000,-661.2,0.00027945,2]
[425950138,1782042665000,-500.0,0.00027945,2]
[425950135,1782042665000,-500.0,0.00027945,2]
[425950139,1782042665000,-500.0,0.00027945,2]
[425950136,1782042665000,-500.0,0.00027945,2]
[425950142,1782042665000,-523.31,0.00027945,2]
[425950141,1782042665000,-500.0,0.00027945,2]
[425950140,1782042665000,-500.0,0.00027945,2]
[425950145,1782042665000,-161.00287,0.00027945,2]
[425950149,1782042665000,-500.0,0.00027945,2]
[425950143,1782042665000,-526.49755517,0.00027945,2]
[425950144,1782042665000,-500.0,0.00027945,2]
[425950150,1782042665000,-1317.73,0.00027945,2]
[425950147,1782042665000,-500.0,0.00027945,2]
[425950146,1782042665000,-500.0,0.00027945,2]
[425950148,1782042665000,-500.0,0.00027945,2]
[425950151,1782042665000,-629.68,0.00027945,2]
[425950152,1782042665000,-500.0,0.00027945,2]
[425950162,1782042665000,-609.18810277,0.00027945,2]
[425950153,1782042665000,-500.0,0.00027945,2]
[425950155,1782042665000,-500.0,0.00027945,2]
[425950154,1782042665000,-500.0,0.00027945,2]
[425950156,1782042665000,-506.46,0.00027945,2]
[425950161,1782042665000,-500.0,0.00027945,2]
[425950159,1782042665000,-500.0,0.00027945,2]
[425950160,1782042665000,-500.0,0.00027945,2]
[425950158,1782042665000,-528.51,0.00027945,2]
[425950191,1782042665000,-500.0,0.00027945,2]
[425950178,1782042665000,-500.0,0.00027945,2]
[425950195,1782042665000,-835.09,0.00027945,2]
[425950225,1782042665000,-500.0,0.00027945,2]
[425950227,1782042665000,-538.04,0.00027945,2]
[425950226,1782042665000,-500.0,0.00027945,2]
[425950222,1782042665000,-500.0,0.00027945,2]
[425950224,1782042665000,-520.1,0.00027945,2]
[425950219,1782042665000,-500.0,0.00027945,2]
[425950223,1782042665000,-529.97,0.00027945,2]
[425950231,1782042665000,-558.94701244,0.00027945,2]
[425950243,1782042665000,-500.0,0.00027945,2]
[425950232,1782042665000,-500.0,0.00027945,2]
[425950234,1782042665000,-1267.73,0.00027945,2]
[425950238,1782042665000,-1452.97,0.00027945,2]
[425950236,1782042665000,-500.0,0.00027945,2]
[425950239,1782042665000,-500.0,0.00027945,2]
[425950237,1782042665000,-243.52585581,0.00027945,2]
[425950240,1782042665000,-500.0,0.00027945,2]
[425950235,1782042665000,-500.0,0.00027945,2]
[425950241,1782042665000,-1067.51,0.00027945,2]
[425950242,1782042665000,-500.0,0.00027945,2]
[425950244,1782042665000,-500.0,0.00027945,2]
[425950247,1782042665000,-670.9,0.00027945,2]
[425950248,1782042665000,-500.0,0.00027945,2]
[425950246,1782042665000,-500.0,0.00027945,2]
[425950245,1782042665000,-500.0,0.00027945,2]
[425950194,1782042665000,-500.0,0.00027945,2]
[425950220,1782042665000,-614.69,0.00027945,2]
[425950229,1782042665000,-485.69372992,0.00027945,2]
[425950233,1782042665000,-4283.71,0.00027945,2]
[425950230,1782042665000,-500.0,0.00027945,2]
[425950228,1782042665000,-500.0,0.00027945,2]
[425950196,1782042665000,-909.56,0.00027945,2]
[425950199,1782042665000,-524.72212906,0.00027945,2]
[425950201,1782042665000,-533.74,0.00027945,2]
[425950197,1782042665000,-500.0,0.00027945,2]
[425950200,1782042665000,-500.0,0.00027945,2]
[425950198,1782042665000,-500.0,0.00027945,2]
[425950190,1782042665000,-500.0,0.00027945,2]
[425950203,1782042665000,-944.4,0.00027945,2]
[425950202,1782042665000,-500.0,0.00027945,2]
[425950204,1782042665000,-500.0,0.00027945,2]
[425950207,1782042665000,-500.0,0.00027945,2]
[425950206,1782042665000,-500.0,0.00027945,2]
[425950189,1782042665000,-500.0,0.00027945,2]
[425950209,1782042665000,-500.0,0.00027945,2]
[425950205,1782042665000,-500.0,0.00027945,2]
[425950215,1782042665000,-500.0,0.00027945,2]
[425950214,1782042665000,-500.0,0.00027945,2]
[425950217,1782042665000,-500.0,0.00027945,2]
[425950216,1782042665000,-500.0,0.00027945,2]
[425950218,1782042665000,-1574.38,0.00027945,2]
[425950221,1782042665000,-500.0,0.00027945,2]
[425950212,1782042665000,-500.0,0.00027945,2]
[425950213,1782042665000,-500.0,0.00027945,2]
[425950208,1782042665000,-2816.73,0.00027945,2]
[425950211,1782042665000,-500.0,0.00027945,2]
[425950210,1782042665000,-500.0,0.00027945,2]
[425950288,1782042666000,-362.02966926,0.00027945,2]
[425950283,1782042666000,-500.0,0.00027945,2]
[425950286,1782042666000,-6119.57,0.00027945,2]
[425950284,1782042666000,-500.0,0.00027945,2]
[425950285,1782042666000,-1074.6,0.00027945,2]
[425950281,1782042666000,-554.94,0.00027945,2]
[425950278,1782042666000,-239.95808326,0.00027945,2]
[425950282,1782042666000,-500.0,0.00027945,2]
[425950280,1782042666000,-500.0,0.00027945,2]
[425950287,1782042666000,-500.0,0.00027945,2]
[425950289,1782042666000,-500.0,0.00027945,2]
[425950291,1782042666000,-500.0,0.00027945,2]
[425950301,1782042666000,-500.0,0.00027945,2]
[425950294,1782042666000,-522.63822228,0.00027945,2]
[425950302,1782042666000,-500.0,0.00027945,2]
[425950303,1782042666000,-151.0,0.00027945,7]
[425950297,1782042666000,-500.0,0.00027945,2]
[425950292,1782042666000,-4223.82,0.00027945,2]
[425950300,1782042666000,-500.0,0.00027945,2]
[425950299,1782042666000,-500.0,0.00027945,2]
[425950296,1782042666000,-500.0,0.00027945,2]
[425950295,1782042666000,-5414.02,0.00027945,2]
[425950293,1782042666000,-517.67999129,0.00027945,2]
[425950304,1782042666000,-619.54,0.00027945,2]
[425950290,1782042666000,-500.0,0.00027945,2]
[425950298,1782042666000,-500.0,0.00027945,2]
[425950279,1782042666000,-500.0,0.00027945,2]
[425950254,1782042666000,-500.0,0.00027945,2]
[425950273,1782042666000,-500.0,0.00027945,2]
[425950251,1782042666000,-4177.04,0.00027945,2]
[425950308,1782042666000,-9051.47,0.00027945,2]
[425950252,1782042666000,-500.0,0.00027945,2]
[425950250,1782042666000,-1956.1,0.00027945,2]
[425950253,1782042666000,-500.0,0.00027945,2]
[425950249,1782042666000,-500.0,0.00027945,2]
[425950256,1782042666000,-500.0,0.00027945,2]
[425950258,1782042666000,-151.0,0.00027945,2]
[425950259,1782042666000,-500.0,0.00027945,2]
[425950257,1782042666000,-500.0,0.00027945,2]
[425950255,1782042666000,-500.0,0.00027945,2]
[425950261,1782042666000,-643.81,0.00027945,2]
[425950260,1782042666000,-250.855081,0.00027945,2]
[425950264,1782042666000,-4138.94,0.00027945,2]
[425950265,1782042666000,-500.0,0.00027945,2]
[425950262,1782042666000,-500.0,0.00027945,2]
[425950263,1782042666000,-1203.84,0.00027945,2]
[425950269,1782042666000,-500.0,0.00027945,2]
[425950268,1782042666000,-1505.18,0.00027945,2]
[425950271,1782042666000,-663.72,0.00027945,2]
[425950272,1782042666000,-500.0,0.00027945,2]
[425950266,1782042666000,-936.18,0.00027945,2]
[425950267,1782042666000,-1105.75,0.00027945,2]
[425950270,1782042666000,-4234.06,0.00027945,2]
[425950276,1782042666000,-500.0,0.00027945,2]
[425950275,1782042666000,-583.38,0.00027945,2]
[425950277,1782042666000,-3754.21,0.00027945,2]
[425950274,1782042666000,-741.98,0.00027945,2]
[425950306,1782042666000,-500.0,0.00027945,2]
[425950305,1782042666000,-500.0,0.00027945,2]
[425950309,1782042666000,-576.5,0.00027945,2]
[425950340,1782042666000,-500.0,0.00027945,2]
[425950342,1782042666000,-311.21192565,0.00027945,2]
[425950343,1782042666000,-560.51,0.00027945,2]
[425950344,1782042666000,-500.0,0.00027945,2]
[425950345,1782042666000,-500.0,0.00027945,2]
[425950346,1782042666000,-779.95,0.00027945,2]
[425950347,1782042666000,-500.0,0.00027945,2]
[425950350,1782042666000,-500.0,0.00027945,2]
[425950348,1782042666000,-500.0,0.00027945,2]
[425950349,1782042666000,-500.0,0.00027945,2]
[425950352,1782042666000,-500.0,0.00027945,2]
[425950353,1782042666000,-500.0,0.00027945,2]
[425950341,1782042666000,-500.0,0.00027945,2]
[425950351,1782042666000,-500.0,0.00027945,2]
[425950355,1782042666000,-500.0,0.00027945,2]
[425950357,1782042666000,-500.0,0.00027945,2]
[425950354,1782042666000,-500.0,0.00027945,2]
[425950359,1782042666000,-500.0,0.00027945,2]
[425950360,1782042666000,-2183.7,0.00027945,2]
[425950356,1782042666000,-500.0,0.00027945,2]
[425950361,1782042666000,-500.0,0.00027945,2]
[425950363,1782042666000,-500.0,0.00027945,2]
[425950366,1782042666000,-500.0,0.00027945,2]
[425950365,1782042666000,-1045.79,0.00027945,2]
[425950364,1782042666000,-500.0,0.00027945,2]
[425950307,1782042666000,-554.38,0.00027945,2]
[425950358,1782042666000,-500.0,0.00027945,2]
[425950339,1782042666000,-500.0,0.00027945,2]
[425950362,1782042666000,-6102.89,0.00027945,2]
[425950333,1782042666000,-500.0,0.00027945,2]
[425950311,1782042666000,-500.0,0.00027945,2]
[425950336,1782042666000,-500.0,0.00027945,2]
[425950310,1782042666000,-2259.71,0.00027945,2]
[425950314,1782042666000,-3663.8,0.00027945,2]
[425950312,1782042666000,-500.0,0.00027945,2]
[425950313,1782042666000,-588.96629384,0.00027945,2]
[425950317,1782042666000,-500.0,0.00027945,2]
[425950315,1782042666000,-586.27,0.00027945,2]
[425950318,1782042666000,-797.89,0.00027945,2]
[425950323,1782042666000,-691.32,0.00027945,2]
[425950320,1782042666000,-500.0,0.00027945,2]
[425950324,1782042666000,-3536.55,0.00027945,2]
[425950321,1782042666000,-500.0,0.00027945,2]
[425950316,1782042666000,-541.69278581,0.00027945,2]
[425950319,1782042666000,-6082.93,0.00027945,2]
[425950329,1782042666000,-500.0,0.00027945,2]
[425950335,1782042666000,-500.0,0.00027945,2]
[425950326,1782042666000,-500.0,0.00027945,2]
[425950330,1782042666000,-500.0,0.00027945,2]
[425950331,1782042666000,-643.32,0.00027945,2]
[425950334,1782042666000,-500.0,0.00027945,2]
[425950337,1782042666000,-500.0,0.00027945,2]
[425950332,1782042666000,-500.0,0.00027945,2]
[425950338,1782042666000,-500.0,0.00027945,2]
[425950328,1782042666000,-1741.07,0.00027945,2]
[425950322,1782042666000,-500.0,0.00027945,2]
[425950325,1782042666000,-500.0,0.00027945,2]
[425950327,1782042666000,-1039.45,0.00027945,2]
[425950405,1782042667000,-5262.06,0.00027945,2]
[425950409,1782042667000,-500.0,0.00027945,2]
[425950407,1782042667000,-500.0,0.00027945,2]
[425950408,1782042667000,-4282.25,0.00027945,2]
[425950406,1782042667000,-500.0,0.00027945,2]
[425950398,1782042667000,-10005.09,0.00027945,2]
[425950402,1782042667000,-719.64,0.00027945,2]
[425950401,1782042667000,-500.0,0.00027945,2]
[425950403,1782042667000,-500.0,0.00027945,2]
[425950400,1782042667000,-4860.35,0.00027945,2]
[425950412,1782042667000,-500.0,0.00027945,2]
[425950404,1782042667000,-6716.5,0.00027945,2]
[425950414,1782042667000,-500.0,0.00027945,2]
[425950422,1782042667000,-515.74,0.00027945,2]
[425950415,1782042667000,-1064.87,0.00027945,2]
[425950413,1782042667000,-4526.61,0.00027945,2]
[425950416,1782042667000,-500.0,0.00027945,2]
[425950419,1782042667000,-574.64,0.00027945,2]
[425950411,1782042667000,-500.0,0.00027945,2]
[425950410,1782042667000,-500.0,0.00027945,2]
[425950420,1782042667000,-5276.66,0.00027945,2]
[425950417,1782042667000,-500.0,0.00027945,2]
[425950421,1782042667000,-500.0,0.00027945,2]
[425950433,1782042667000,-506.81,0.00027945,2]
[425950423,1782042667000,-1436.960783,0.00027945,7]
[425950434,1782042667000,-503.69,0.00027945,2]
[425950399,1782042667000,-500.0,0.00027945,2]
[425950418,1782042667000,-500.0,0.00027945,2]
[425950391,1782042667000,-2815.05,0.00027945,2]
[425950370,1782042667000,-500.0,0.00027945,2]
[425950395,1782042667000,-500.0,0.00027945,2]
[425950367,1782042667000,-2562.49,0.00027945,2]
[425950368,1782042667000,-500.0,0.00027945,2]
[425950371,1782042667000,-500.0,0.00027945,2]
[425950369,1782042667000,-500.0,0.00027945,2]
[425950373,1782042667000,-1007.37,0.00027945,2]
[425950372,1782042667000,-639.45,0.00027945,2]
[425950375,1782042667000,-1343.23,0.00027945,2]
[425950385,1782042667000,-500.0,0.00027945,2]
[425950374,1782042667000,-500.0,0.00027945,2]
[425950379,1782042667000,-551.8,0.00027945,2]
[425950378,1782042667000,-5243.54,0.00027945,2]
[425950377,1782042667000,-500.0,0.00027945,2]
[425950376,1782042667000,-535.43,0.00027945,2]
[425950380,1782042667000,-500.0,0.00027945,2]
[425950381,1782042667000,-500.0,0.00027945,2]
[425950382,1782042667000,-4255.92,0.00027945,2]
[425950384,1782042667000,-500.0,0.00027945,2]
[425950383,1782042667000,-500.0,0.00027945,2]
[425950386,1782042667000,-637.65,0.00027945,2]
[425950388,1782042667000,-508.17092958,0.00027945,2]
[425950389,1782042667000,-1490.2,0.00027945,2]
[425950390,1782042667000,-8765.19,0.00027945,2]
[425950387,1782042667000,-500.0,0.00027945,2]
[425950429,1782042667000,-500.0,0.00027945,2]
[425950396,1782042667000,-500.0,0.00027945,2]
[425950394,1782042667000,-500.0,0.00027945,2]
[425950393,1782042667000,-768.97,0.00027945,2]
[425950397,1782042667000,-500.0,0.00027945,2]
[425950435,1782042667000,-500.0,0.00027945,2]
[425950392,1782042667000,-4969.53,0.00027945,2]
[425950426,1782042667000,-1436.960783,0.00027945,7]
[425950467,1782042667000,-433.36209803,0.00027945,2]
[425950464,1782042667000,-1476.4,0.00027945,2]
[425950461,1782042667000,-500.0,0.00027945,2]
[425950466,1782042667000,-500.0,0.00027945,2]
[425950471,1782042667000,-500.0,0.00027945,2]
[425950463,1782042667000,-500.0,0.00027945,2]
[425950472,1782042667000,-500.0,0.00027945,2]
[425950469,1782042667000,-500.0,0.00027945,2]
[425950468,1782042667000,-9014.62,0.00027945,2]
[425950465,1782042667000,-500.0,0.00027945,2]
[425950470,1782042667000,-500.0,0.00027945,2]
[425950474,1782042667000,-603.21825361,0.00027945,2]
[425950484,1782042667000,-509.16937564,0.00027945,2]
[425950473,1782042667000,-500.0,0.00027945,2]
[425950482,1782042667000,-598.24,0.00027945,2]
[425950479,1782042667000,-8519.32,0.00027945,2]
[425950478,1782042667000,-569.43,0.00027945,2]
[425950477,1782042667000,-796.21,0.00027945,2]
[425950476,1782042667000,-500.0,0.00027945,2]
[425950475,1782042667000,-872.32,0.00027945,2]
[425950481,1782042667000,-302.85366902,0.00027945,2]
[425950483,1782042667000,-6438.33,0.00027945,2]
[425950480,1782042667000,-500.0,0.00027945,2]
[425950488,1782042667000,-718.34,0.00027945,2]
[425950486,1782042667000,-2234.42,0.00027945,2]
[425950487,1782042667000,-1516.79,0.00027945,2]
[425950424,1782042667000,-500.0,0.00027945,2]
[425950460,1782042667000,-604.46,0.00027945,2]
[425950462,1782042667000,-500.0,0.00027945,2]
[425950485,1782042667000,-500.0,0.00027945,2]
[425950455,1782042667000,-573.05,0.00027945,2]
[425950458,1782042667000,-1355.35,0.00027945,2]
[425950430,1782042667000,-859.51,0.00027945,2]
[425950428,1782042667000,-500.0,0.00027945,2]
[425950431,1782042667000,-1436.960783,0.00027945,7]
[425950425,1782042667000,-500.0,0.00027945,2]
[425950432,1782042667000,-4721.85,0.00027945,2]
[425950436,1782042667000,-3659.51,0.00027945,2]
[425950442,1782042667000,-500.0,0.00027945,2]
[425950445,1782042667000,-500.0,0.00027945,2]
[425950447,1782042667000,-500.0,0.00027945,2]
[425950441,1782042667000,-500.0,0.00027945,2]
[425950438,1782042667000,-500.0,0.00027945,2]
[425950439,1782042667000,-500.0,0.00027945,2]
[425950443,1782042667000,-158.29196071,0.00027945,7]
[425950427,1782042667000,-1436.960783,0.00027945,7]
[425950454,1782042667000,-500.0,0.00027945,2]
[425950456,1782042667000,-1000.0,0.00027945,2]
[425950457,1782042667000,-500.0,0.00027945,2]
[425950453,1782042667000,-1605.98,0.00027945,2]
[425950446,1782042667000,-608.75,0.00027945,2]
[425950459,1782042667000,-500.0,0.00027945,2]
[425950452,1782042667000,-500.0,0.00027945,2]
[425950448,1782042667000,-551.78,0.00027945,2]
[425950451,1782042667000,-500.0,0.00027945,2]
[425950449,1782042667000,-500.0,0.00027945,2]
[425950440,1782042667000,-500.0,0.00027945,2]
[425950437,1782042667000,-582.57,0.00027945,2]
[425950444,1782042667000,-4874.19,0.00027945,2]
[425950450,1782042667000,-500.0,0.00027945,2]
[425950532,1782042668000,-500.0,0.00027945,2]
[425950528,1782042668000,-359.91507559,0.00027945,2]
[425950529,1782042668000,-500.0,0.00027945,2]
[425950531,1782042668000,-500.0,0.00027945,2]
[425950527,1782042668000,-500.0,0.00027945,2]
[425950517,1782042668000,-500.0,0.00027945,2]
[425950525,1782042668000,-3481.99,0.00027945,2]
[425950526,1782042668000,-500.0,0.00027945,2]
[425950523,1782042668000,-10187.27,0.00027945,2]
[425950516,1782042668000,-5148.55,0.00027945,2]
[425950519,1782042668000,-828.79,0.00027945,2]
[425950530,1782042668000,-566.23,0.00027945,2]
[425950524,1782042668000,-946.6,0.00027945,2]
[425950535,1782042668000,-500.0,0.00027945,2]
[425950545,1782042668000,-500.0,0.00027945,2]
[425950533,1782042668000,-500.0,0.00027945,2]
[425950537,1782042668000,-500.0,0.00027945,2]
[425950538,1782042668000,-505.99,0.00027945,2]
[425950539,1782042668000,-518.40374912,0.00027945,2]
[425950543,1782042668000,-7571.98,0.00027945,2]
[425950536,1782042668000,-3945.85,0.00027945,2]
[425950544,1782042668000,-500.0,0.00027945,2]
[425950547,1782042668000,-500.0,0.00027945,2]
[425950546,1782042668000,-500.0,0.00027945,2]
[425950540,1782042668000,-4715.32,0.00027945,2]
[425950542,1782042668000,-500.0,0.00027945,2]
[425950541,1782042668000,-6980.09,0.00027945,2]
[425950548,1782042668000,-3607.27,0.00027945,2]
[425950534,1782042668000,-500.0,0.00027945,2]
[425950512,1782042668000,-420.423312,0.00027945,2]
[425950489,1782042668000,-1556.42,0.00027945,2]
[425950522,1782042668000,-869.68,0.00027945,2]
[425950556,1782042668000,-817.39,0.00027945,2]
[425950490,1782042668000,-4544.37,0.00027945,2]
[425950496,1782042668000,-5159.49,0.00027945,2]
[425950495,1782042668000,-926.0,0.00027945,2]
[425950491,1782042668000,-500.0,0.00027945,2]
[425950497,1782042668000,-3610.73,0.00027945,2]
[425950492,1782042668000,-839.09,0.00027945,2]
[425950498,1782042668000,-5803.51,0.00027945,2]
[425950493,1782042668000,-500.0,0.00027945,2]
[425950494,1782042668000,-716.08,0.00027945,2]
[425950500,1782042668000,-1112.63,0.00027945,2]
[425950505,1782042668000,-5549.57,0.00027945,2]
[425950501,1782042668000,-7329.28,0.00027945,2]
[425950515,1782042668000,-1064.36,0.00027945,2]
[425950503,1782042668000,-823.61,0.00027945,2]
[425950499,1782042668000,-9065.06,0.00027945,2]
[425950504,1782042668000,-784.94,0.00027945,2]
[425950506,1782042668000,-500.0,0.00027945,2]
[425950502,1782042668000,-500.0,0.00027945,2]
[425950507,1782042668000,-175.10160676,0.00027945,2]
[425950510,1782042668000,-500.0,0.00027945,2]
[425950509,1782042668000,-500.0,0.00027945,2]
[425950520,1782042668000,-300.0,0.00027945,2]
[425950511,1782042668000,-660.32,0.00027945,2]
[425950521,1782042668000,-500.0,0.00027945,2]
[425950513,1782042668000,-9362.85,0.00027945,2]
[425950514,1782042668000,-6381.5,0.00027945,2]
[425950518,1782042668000,-623.68,0.00027945,2]
[425950508,1782042668000,-6802.2,0.00027945,2]
[425950549,1782042668000,-4352.03,0.00027945,2]
[425950558,1782042668000,-500.0,0.00027945,2]
[425950560,1782042668000,-500.0,0.00027945,2]
[425950580,1782042668000,-500.0,0.00027945,2]
[425950584,1782042668000,-500.0,0.00027945,2]
[425950583,1782042668000,-500.0,0.00027945,2]
[425950589,1782042668000,-560.48,0.00027945,2]
[425950600,1782042668000,-500.0,0.00027945,2]
[425950594,1782042668000,-501.82455083,0.00027945,2]
[425950601,1782042668000,-673.53,0.00027945,2]
[425950595,1782042668000,-500.0,0.00027945,2]
[425950593,1782042668000,-612.86964462,0.00027945,2]